[Event "*** Titled Tuesday Blitz"]
[Site "Chess.com"]
[Date "2020.05.12"]
[Round "3"]
[White "DonPreuss"]
[Black "sjevtic"]
[Result "1-0"]
[WhiteElo "2170"]
[BlackElo "2352"]
[TimeControl "180+1"]
[EndTime "10:28:20 PDT"]
[Termination "DonPreuss won by resignation"]

1. d4 {[%clk 0:03:00.9]} 1... d5 {[%clk 0:02:59.6]} 2. e4 {[%clk 0:03:01.1]}
2... dxe4 {[%clk 0:02:59.5]} 3. Nc3 {[%clk 0:03:01.5]} 3... Nf6 {[%clk
0:02:59.6]} 4. f3 {[%clk 0:03:01.5]} 4... Bf5 {[%clk 0:02:59.4]} 5. fxe4 {[%clk
0:03:01]} 5... Nxe4 {[%clk 0:02:58.6]} 6. Qf3 {[%clk 0:03:01.1]} 6... Nd6 {[%clk
0:01:53.4]} 7. Bf4 {[%clk 0:02:59.6]} 7... Bc8 {[%clk 0:01:53.5]} 8. Bxd6 {[%clk
0:02:57.9]} 8... cxd6 {[%clk 0:01:51.1]} 9. Bc4 {[%clk 0:02:58.4]} 9... e6
{[%clk 0:01:50.8]} 10. Nge2 {[%clk 0:02:54.4]} 10... Be7 {[%clk 0:01:50.8]} 11.
O-O {[%clk 0:02:54.3]} 11... O-O {[%clk 0:01:50]} 12. Qh5 {[%clk 0:02:43.6]}
12... Nd7 {[%clk 0:01:32.8]} 13. Bd3 {[%clk 0:02:35.8]} 13... f5 {[%clk
0:01:25.1]} 14. Nf4 {[%clk 0:02:31.6]} 14... Nf6 {[%clk 0:01:18.1]} 15. Qe2
{[%clk 0:02:31.3]} 15... Qd7 {[%clk 0:01:06.2]} 16. Rae1 {[%clk 0:02:31.4]}
16... Bd8 {[%clk 0:00:29.8]} 17. Nxe6 {[%clk 0:01:45.1]} 17... Re8 {[%clk
0:00:28.9]} 18. Bxf5 {[%clk 0:01:45.1]} 18... Qf7 {[%clk 0:00:19.5]} 19. Bh3
{[%clk 0:01:15]} 19... Bb6 {[%clk 0:00:19.2]} 20. Qc4 {[%clk 0:00:43.9]} 20...
Bxd4+ {[%clk 0:00:14.6]} 21. Qxd4 {[%clk 0:00:39.7]} 21... Bxe6 {[%clk
0:00:14.9]} 22. Bxe6 {[%clk 0:00:26.4]} 22... Rxe6 {[%clk 0:00:15.8]} 23. Ne4
{[%clk 0:00:24.5]} 23... h6 {[%clk 0:00:08]} 24. Nxf6+ {[%clk 0:00:20]} 24...
Rxf6 {[%clk 0:00:08.2]} 25. Rxf6 {[%clk 0:00:19.6]} 25... Qxf6 {[%clk
0:00:09.1]} 26. Qxf6 {[%clk 0:00:18.9]} 26... gxf6 {[%clk 0:00:10]} 27. Re7
{[%clk 0:00:19.1]} 27... Rc8 {[%clk 0:00:09.4]} 28. c3 {[%clk 0:00:19.3]} 28...
Rc6 {[%clk 0:00:09.6]} 29. Rxb7 {[%clk 0:00:19.3]} 29... Rb6 {[%clk 0:00:09.7]}
30. Rxb6 {[%clk 0:00:18.9]} 30... axb6 {[%clk 0:00:10.6]} 31. a4 {[%clk
0:00:16.6]} 31... Kf7 {[%clk 0:00:11.5]} 32. Kf2 {[%clk 0:00:16.7]} 32... Ke6
{[%clk 0:00:12.4]} 33. Ke3 {[%clk 0:00:17.5]} 33... Kd5 {[%clk 0:00:12.9]} 34.
b3 {[%clk 0:00:17.9]} 34... Kc5 {[%clk 0:00:13]} 35. h4 {[%clk 0:00:15.2]} 35...
d5 {[%clk 0:00:12.4]} 36. h5 {[%clk 0:00:15.2]} 36... f5 {[%clk 0:00:12.7]} 37.
Kf4 {[%clk 0:00:12.8]} 37... d4 {[%clk 0:00:13.2]} 38. cxd4+ {[%clk 0:00:13]}
38... Kxd4 {[%clk 0:00:14.1]} 39. b4 {[%clk 0:00:11.8]} 1-0

[Event "*** Titled Tuesday Blitz"]
[Site "Chess.com"]
[Date "2020.05.12"]
[Round "3"]
[White "Fusikk"]
[Black "martabartel"]
[Result "0-1"]
[WhiteElo "2500"]
[BlackElo "2296"]
[TimeControl "180+1"]
[EndTime "10:28:21 PDT"]
[Termination "martabartel won by resignation"]

1. d4 {[%clk 0:03:00.9]} 1... f5 {[%clk 0:02:58]} 2. c4 {[%clk 0:02:58.5]} 2...
g6 {[%clk 0:02:57.5]} 3. h4 {[%clk 0:02:56.3]} 3... Nf6 {[%clk 0:02:55.8]} 4.
Nc3 {[%clk 0:02:56.5]} 4... Bg7 {[%clk 0:02:43.2]} 5. h5 {[%clk 0:02:45.7]} 5...
Nxh5 {[%clk 0:02:23.1]} 6. e4 {[%clk 0:02:45.4]} 6... d6 {[%clk 0:01:53.8]} 7.
Rxh5 {[%clk 0:02:44]} 7... gxh5 {[%clk 0:01:53.3]} 8. Qxh5+ {[%clk 0:02:44.9]}
8... Kf8 {[%clk 0:01:53.3]} 9. Bh6 {[%clk 0:02:40.8]} 9... e6 {[%clk 0:01:38.6]}
10. exf5 {[%clk 0:02:35.1]} 10... Qf6 {[%clk 0:01:28.8]} 11. Bxg7+ {[%clk
0:02:32.5]} 11... Kxg7 {[%clk 0:01:27.3]} 12. O-O-O {[%clk 0:02:19.2]} 12...
Qxf5 {[%clk 0:01:25.2]} 13. Qh4 {[%clk 0:02:13.1]} 13... Qf6 {[%clk 0:01:18.4]}
14. Qg3+ {[%clk 0:01:57.8]} 14... Qg6 {[%clk 0:01:16]} 15. Qe3 {[%clk
0:01:54.1]} 15... Bd7 {[%clk 0:01:10.8]} 16. Nh3 {[%clk 0:01:54.1]} 16... Nc6
{[%clk 0:01:02.9]} 17. Nf4 {[%clk 0:01:50.8]} 17... Qh6 {[%clk 0:01:00.3]} 18.
d5 {[%clk 0:01:39.3]} 18... Ne5 {[%clk 0:00:55.3]} 19. dxe6 {[%clk 0:01:32.2]}
19... Bxe6 {[%clk 0:00:43.2]} 20. Nxe6+ {[%clk 0:01:23.6]} 20... Qxe6 {[%clk
0:00:41.8]} 21. f4 {[%clk 0:01:24.1]} 21... Qh6 {[%clk 0:00:41.1]} 22. Re1
{[%clk 0:01:22.7]} 22... Nf7 {[%clk 0:00:35.6]} 23. Nd5 {[%clk 0:01:19.1]} 23...
Rhe8 {[%clk 0:00:28.2]} 24. Qc3+ {[%clk 0:00:30.4]} 24... Kf8 {[%clk 0:00:27.8]}
25. g3 {[%clk 0:00:30.1]} 25... Rxe1+ {[%clk 0:00:27.1]} 26. Qxe1 {[%clk
0:00:31]} 26... Re8 {[%clk 0:00:24.8]} 27. Qf2 {[%clk 0:00:31.1]} 27... Qh1
{[%clk 0:00:19.5]} 28. Kc2 {[%clk 0:00:29.1]} 28... Qe4+ {[%clk 0:00:16.7]} 29.
Bd3 {[%clk 0:00:29.1]} 29... Qe1 {[%clk 0:00:16.1]} 30. Qh2 {[%clk 0:00:22]}
30... h6 {[%clk 0:00:07.9]} 31. Nxc7 {[%clk 0:00:18.1]} 31... Re3 {[%clk
0:00:06.3]} 32. Nd5 {[%clk 0:00:17.1]} 32... Rf3 {[%clk 0:00:05.4]} 33. Qh5
{[%clk 0:00:13.9]} 33... Rf2+ {[%clk 0:00:05.7]} 34. Kb3 {[%clk 0:00:14.2]}
34... Qd1+ {[%clk 0:00:05.4]} 35. Kb4 {[%clk 0:00:12.9]} 35... Qxh5 {[%clk
0:00:04.5]} 0-1

[Event "*** Titled Tuesday Blitz"]
[Site "Chess.com"]
[Date "2020.05.12"]
[Round "3"]
[White "checkmatequen"]
[Black "cukus"]
[Result "0-1"]
[WhiteElo "2241"]
[BlackElo "2509"]
[TimeControl "180+1"]
[EndTime "10:28:22 PDT"]
[Termination "cukus won by checkmate"]

1. e4 {[%clk 0:03:00.9]} 1... c6 {[%clk 0:02:58.2]} 2. d4 {[%clk 0:03:00.4]}
2... d5 {[%clk 0:02:55.5]} 3. Nc3 {[%clk 0:03:00.1]} 3... dxe4 {[%clk
0:02:55.5]} 4. Nxe4 {[%clk 0:03:01]} 4... Nf6 {[%clk 0:02:55.9]} 5. Nxf6+ {[%clk
0:03:01.1]} 5... exf6 {[%clk 0:02:56.8]} 6. c3 {[%clk 0:03:01.6]} 6... Bd6
{[%clk 0:02:57.1]} 7. Bd3 {[%clk 0:03:02.1]} 7... O-O {[%clk 0:02:57.4]} 8. Ne2
{[%clk 0:03:02.7]} 8... Re8 {[%clk 0:02:57.3]} 9. O-O {[%clk 0:03:02.7]} 9...
Nd7 {[%clk 0:02:55.1]} 10. Bf4 {[%clk 0:03:03.1]} 10... Nf8 {[%clk 0:02:32.5]}
11. Bxd6 {[%clk 0:03:00.5]} 11... Qxd6 {[%clk 0:02:33.4]} 12. Ng3 {[%clk
0:03:01.2]} 12... Ng6 {[%clk 0:02:23.3]} 13. Qf3 {[%clk 0:02:44.3]} 13... Bd7
{[%clk 0:02:13.8]} 14. Rfe1 {[%clk 0:02:34]} 14... a5 {[%clk 0:01:44.5]} 15. Ne4
{[%clk 0:02:29.3]} 15... Qc7 {[%clk 0:01:38.7]} 16. g3 {[%clk 0:02:21.4]} 16...
b6 {[%clk 0:01:34.8]} 17. h4 {[%clk 0:02:20.8]} 17... Be6 {[%clk 0:01:32.5]} 18.
h5 {[%clk 0:02:19.2]} 18... f5 {[%clk 0:01:08.4]} 19. hxg6 {[%clk 0:02:10.8]}
19... fxe4 {[%clk 0:01:07.1]} 20. gxh7+ {[%clk 0:02:07.1]} 20... Kh8 {[%clk
0:01:05.3]} 21. Bxe4 {[%clk 0:02:07.6]} 21... Rac8 {[%clk 0:01:05.3]} 22. Kg2
{[%clk 0:02:03.5]} 22... Qd7 {[%clk 0:01:02]} 23. Rh1 {[%clk 0:02:03.1]} 23...
Bg4 {[%clk 0:01:00.2]} 24. Qd3 {[%clk 0:01:57.6]} 24... Rxe4 {[%clk 0:00:45.2]}
25. Qxe4 {[%clk 0:01:57.1]} 25... Re8 {[%clk 0:00:45.5]} 26. Qf4 {[%clk
0:01:39.6]} 26... Qd5+ {[%clk 0:00:43.1]} 27. Kg1 {[%clk 0:01:32.3]} 27... Bd7
{[%clk 0:00:34.9]} 28. Kh2 {[%clk 0:01:04.7]} 28... c5 {[%clk 0:00:32.8]} 29.
Rhe1 {[%clk 0:01:03.3]} 29... Rxe1 {[%clk 0:00:28]} 30. Rxe1 {[%clk 0:01:04.2]}
30... Bc6 {[%clk 0:00:28.8]} 31. f3 {[%clk 0:01:04.5]} 31... cxd4 {[%clk
0:00:26.8]} 32. cxd4 {[%clk 0:01:03.1]} 32... Qxa2 {[%clk 0:00:26.2]} 33. Qb8+
{[%clk 0:00:59.1]} 33... Kxh7 {[%clk 0:00:25.2]} 34. Qe5 {[%clk 0:00:54.6]}
34... Qxb2+ {[%clk 0:00:23.6]} 35. Kh3 {[%clk 0:00:54.9]} 35... Qf2 {[%clk
0:00:22.1]} 36. Qh5+ {[%clk 0:00:54]} 36... Kg8 {[%clk 0:00:22.2]} 37. Re7
{[%clk 0:00:40.1]} 37... Qf1+ {[%clk 0:00:20.1]} 38. Kh2 {[%clk 0:00:35]} 38...
Qf2+ {[%clk 0:00:19]} 39. Kh3 {[%clk 0:00:35.4]} 39... g6 {[%clk 0:00:16.5]} 40.
Qe5 {[%clk 0:00:23.7]} 40... Qxf3 {[%clk 0:00:14.6]} 41. Qb8+ {[%clk 0:00:21.1]}
41... Kh7 {[%clk 0:00:11.6]} 42. Qf4 {[%clk 0:00:21.3]} 42... Qh1+ {[%clk
0:00:10.7]} 43. Kg4 {[%clk 0:00:20.6]} 43... Qh5# {[%clk 0:00:10.9]} 0-1

[Event "*** Titled Tuesday Blitz"]
[Site "Chess.com"]
[Date "2020.05.12"]
[Round "3"]
[White "ajdemipopushi"]
[Black "pedroholly22"]
[Result "0-1"]
[WhiteElo "2205"]
[BlackElo "2454"]
[TimeControl "180+1"]
[EndTime "10:28:22 PDT"]
[Termination "pedroholly22 won on time"]

1. Nf3 {[%clk 0:03:00.9]} 1... c5 {[%clk 0:02:59.2]} 2. g3 {[%clk 0:03:01.3]}
2... g6 {[%clk 0:02:58]} 3. Bg2 {[%clk 0:03:01.4]} 3... Bg7 {[%clk 0:02:58.9]}
4. c4 {[%clk 0:03:00.6]} 4... Nf6 {[%clk 0:02:59.3]} 5. O-O {[%clk 0:03:00.4]}
5... O-O {[%clk 0:02:59.8]} 6. Nc3 {[%clk 0:03:00.7]} 6... d5 {[%clk 0:03:00.3]}
7. cxd5 {[%clk 0:02:57.8]} 7... Nxd5 {[%clk 0:03:01.2]} 8. Nxd5 {[%clk
0:02:55.2]} 8... Qxd5 {[%clk 0:03:02.1]} 9. d3 {[%clk 0:02:55.6]} 9... Nc6
{[%clk 0:03:01.7]} 10. a3 {[%clk 0:02:54]} 10... Qd6 {[%clk 0:03:01.2]} 11. Rb1
{[%clk 0:02:49.5]} 11... Be6 {[%clk 0:03:00.1]} 12. Be3 {[%clk 0:02:48.3]} 12...
b6 {[%clk 0:02:56.2]} 13. Qd2 {[%clk 0:02:44]} 13... Rad8 {[%clk 0:02:55.2]} 14.
b4 {[%clk 0:02:26.1]} 14... cxb4 {[%clk 0:02:51.5]} 15. axb4 {[%clk 0:02:25.2]}
15... Nd4 {[%clk 0:02:44.1]} 16. Bxd4 {[%clk 0:01:53.6]} 16... Bxd4 {[%clk
0:02:45]} 17. Rfc1 {[%clk 0:01:43.4]} 17... Bg7 {[%clk 0:02:31.3]} 18. b5 {[%clk
0:01:42.8]} 18... Rc8 {[%clk 0:02:28.6]} 19. Ng5 {[%clk 0:01:16.9]} 19... Bd7
{[%clk 0:02:25.7]} 20. Ne4 {[%clk 0:01:04.6]} 20... Qa3 {[%clk 0:02:17.9]} 21.
Qg5 {[%clk 0:00:46.3]} 21... Rxc1+ {[%clk 0:01:45.5]} 22. Rxc1 {[%clk
0:00:45.2]} 22... f6 {[%clk 0:01:39.4]} 23. Qd5+ {[%clk 0:00:39.1]} 23... e6
{[%clk 0:01:35.5]} 24. Qc4 {[%clk 0:00:25.3]} 24... Rc8 {[%clk 0:01:34.1]} 25.
Qxc8+ {[%clk 0:00:24.9]} 25... Bxc8 {[%clk 0:01:33.4]} 26. Rxc8+ {[%clk
0:00:24.7]} 26... Kf7 {[%clk 0:01:33.8]} 27. Rc7+ {[%clk 0:00:18.3]} 27... Kf8
{[%clk 0:01:32.4]} 28. Bf3 {[%clk 0:00:15.1]} 28... h5 {[%clk 0:01:10]} 29. Rc6
{[%clk 0:00:13.3]} 29... Qa2 {[%clk 0:01:00.4]} 30. Nd6 {[%clk 0:00:11.7]} 30...
Ke7 {[%clk 0:00:56]} 31. Nc4 {[%clk 0:00:10.7]} 31... Kd7 {[%clk 0:00:51.3]} 32.
Rd6+ {[%clk 0:00:09.8]} 32... Ke7 {[%clk 0:00:48.2]} 33. Bc6 {[%clk 0:00:08.6]}
33... f5 {[%clk 0:00:47.6]} 34. Rd7+ {[%clk 0:00:07.7]} 34... Kf6 {[%clk
0:00:46.4]} 35. Nd6 {[%clk 0:00:08]} 35... Bh6 {[%clk 0:00:34.2]} 36. Ne8+
{[%clk 0:00:06.1]} 36... Kg5 {[%clk 0:00:26]} 37. Bf3 {[%clk 0:00:02.8]} 37...
h4 {[%clk 0:00:23.1]} 38. gxh4+ {[%clk 0:00:02.5]} 38... Kxh4 {[%clk 0:00:23.3]}
39. Rh7 {[%clk 0:00:01.4]} 39... Kg5 {[%clk 0:00:21.9]} 0-1

[Event "*** Titled Tuesday Blitz"]
[Site "Chess.com"]
[Date "2020.05.12"]
[Round "3"]
[White "krasavetc"]
[Black "Kaliopa"]
[Result "0-1"]
[WhiteElo "2311"]
[BlackElo "2092"]
[TimeControl "180+1"]
[EndTime "10:28:22 PDT"]
[Termination "Kaliopa won by resignation"]

1. e4 {[%clk 0:03:00.9]} 1... c5 {[%clk 0:02:59.7]} 2. b3 {[%clk 0:02:58.1]}
2... Nc6 {[%clk 0:02:58]} 3. Bb2 {[%clk 0:02:57.7]} 3... d6 {[%clk 0:02:57.7]}
4. Nf3 {[%clk 0:02:57.3]} 4... e5 {[%clk 0:02:57.5]} 5. Bb5 {[%clk 0:02:56.3]}
5... Bd7 {[%clk 0:02:56.2]} 6. c3 {[%clk 0:02:56.1]} 6... g6 {[%clk 0:02:55.4]}
7. d4 {[%clk 0:02:55.5]} 7... cxd4 {[%clk 0:02:55.9]} 8. cxd4 {[%clk 0:02:55.1]}
8... Bg7 {[%clk 0:02:55.7]} 9. dxe5 {[%clk 0:02:53.3]} 9... dxe5 {[%clk
0:02:54.8]} 10. O-O {[%clk 0:02:34.9]} 10... Nge7 {[%clk 0:02:53.5]} 11. Qd6
{[%clk 0:02:23.7]} 11... O-O {[%clk 0:02:44]} 12. Rd1 {[%clk 0:02:09.4]} 12...
Be6 {[%clk 0:02:41.7]} 13. Na3 {[%clk 0:01:58.2]} 13... a6 {[%clk 0:02:21.6]}
14. Bc4 {[%clk 0:01:55.5]} 14... Bxc4 {[%clk 0:02:20.6]} 15. Nxc4 {[%clk
0:01:54]} 15... Qxd6 {[%clk 0:02:10.9]} 16. Rxd6 {[%clk 0:01:54.9]} 16... f6
{[%clk 0:02:10.9]} 17. Nb6 {[%clk 0:01:50]} 17... Rad8 {[%clk 0:02:08.2]} 18.
Rad1 {[%clk 0:01:48.1]} 18... Kf7 {[%clk 0:02:07.9]} 19. Ba3 {[%clk 0:01:43]}
19... Rxd6 {[%clk 0:02:05.4]} 20. Rxd6 {[%clk 0:01:41.5]} 20... Rd8 {[%clk
0:02:03.9]} 21. Nc4 {[%clk 0:01:29.2]} 21... Bf8 {[%clk 0:01:22.7]} 22. Rxd8
{[%clk 0:01:24.2]} 22... Nxd8 {[%clk 0:01:23.6]} 23. Nd6+ {[%clk 0:01:24.8]}
23... Ke6 {[%clk 0:01:22.8]} 24. Nxb7 {[%clk 0:01:24.5]} 24... Nxb7 {[%clk
0:01:21.2]} 25. Nd2 {[%clk 0:01:24]} 25... Kf7 {[%clk 0:01:19.1]} 26. Nc4 {[%clk
0:01:21.7]} 26... Nc6 {[%clk 0:01:17.7]} 27. Bb2 {[%clk 0:01:21.2]} 27... Bc5
{[%clk 0:01:16]} 28. Kf1 {[%clk 0:01:19.8]} 28... Ke6 {[%clk 0:01:16.2]} 29. f3
{[%clk 0:01:19.7]} 29... Bd4 {[%clk 0:01:16]} 30. Ba3 {[%clk 0:01:18.9]} 30...
Bc5 {[%clk 0:01:16.4]} 31. Bb2 {[%clk 0:01:18.7]} 31... Nb4 {[%clk 0:01:16.6]}
32. a3 {[%clk 0:01:18.6]} 32... Nd3 {[%clk 0:01:15.4]} 33. Bc3 {[%clk
0:01:18.6]} 33... Nd6 {[%clk 0:01:04.5]} 34. Nxd6 {[%clk 0:01:12.5]} 34... Bxd6
{[%clk 0:01:04.4]} 35. b4 {[%clk 0:01:12.9]} 35... Bc7 {[%clk 0:01:02.1]} 36. g3
{[%clk 0:01:11.7]} 36... Nc1 {[%clk 0:01:02.2]} 37. Bb2 {[%clk 0:01:06.5]} 37...
Nb3 {[%clk 0:01:01.9]} 38. Ke2 {[%clk 0:01:05.8]} 38... Bb6 {[%clk 0:01:02.4]}
39. Kd3 {[%clk 0:01:03.5]} 39... Bd4 {[%clk 0:01:02.1]} 40. Bxd4 {[%clk
0:00:56.5]} 40... Nxd4 {[%clk 0:01:03]} 41. f4 {[%clk 0:00:55.6]} 41... Kd6
{[%clk 0:01:02.9]} 42. a4 {[%clk 0:00:52.5]} 42... Nf3 {[%clk 0:01:02]} 43. h3
{[%clk 0:00:48.4]} 43... Ng1 {[%clk 0:00:58.9]} 44. h4 {[%clk 0:00:47.1]} 44...
exf4 {[%clk 0:00:58.6]} 45. gxf4 {[%clk 0:00:46.6]} 45... Nf3 {[%clk 0:00:58.8]}
46. b5 {[%clk 0:00:41.4]} 46... axb5 {[%clk 0:00:57.6]} 47. a5 {[%clk
0:00:39.7]} 47... Kc6 {[%clk 0:00:56.6]} 48. Ke3 {[%clk 0:00:39.7]} 48... Nxh4
{[%clk 0:00:55.3]} 49. e5 {[%clk 0:00:39.8]} 49... fxe5 {[%clk 0:00:54.2]} 50.
fxe5 {[%clk 0:00:40.2]} 50... Nf5+ {[%clk 0:00:55.1]} 51. Ke4 {[%clk 0:00:39.8]}
51... b4 {[%clk 0:00:55]} 52. e6 {[%clk 0:00:39.8]} 52... b3 {[%clk 0:00:54.6]}
53. Kd3 {[%clk 0:00:40.7]} 53... h5 {[%clk 0:00:54]} 54. a6 {[%clk 0:00:38.2]}
54... Kb6 {[%clk 0:00:53.7]} 55. Kc3 {[%clk 0:00:38.1]} 55... h4 {[%clk
0:00:52.3]} 56. Kxb3 {[%clk 0:00:37.8]} 56... h3 {[%clk 0:00:52.7]} 57. a7
{[%clk 0:00:36.3]} 57... Kxa7 {[%clk 0:00:51.3]} 58. e7 {[%clk 0:00:34]} 58...
Nxe7 {[%clk 0:00:52.2]} 0-1

[Event "*** Titled Tuesday Blitz"]
[Site "Chess.com"]
[Date "2020.05.12"]
[Round "3"]
[White "Robert_Chessmood"]
[Black "abykhovsky"]
[Result "0-1"]
[WhiteElo "2950"]
[BlackElo "2682"]
[TimeControl "180+1"]
[EndTime "10:28:24 PDT"]
[Termination "abykhovsky won on time"]

1. e4 {[%clk 0:03:00.9]} 1... c5 {[%clk 0:02:59.1]} 2. Nf3 {[%clk 0:03:00.8]}
2... d6 {[%clk 0:02:59.1]} 3. d4 {[%clk 0:02:58.9]} 3... cxd4 {[%clk 0:02:58.9]}
4. Nxd4 {[%clk 0:02:59.8]} 4... Nf6 {[%clk 0:02:59.3]} 5. Nc3 {[%clk 0:03:00.2]}
5... Nc6 {[%clk 0:02:59.4]} 6. Bg5 {[%clk 0:02:59.2]} 6... e6 {[%clk 0:02:59.3]}
7. Qd2 {[%clk 0:02:59.8]} 7... a6 {[%clk 0:02:57.9]} 8. Nxc6 {[%clk 0:02:59.8]}
8... bxc6 {[%clk 0:02:57.8]} 9. O-O-O {[%clk 0:02:59.9]} 9... Be7 {[%clk
0:02:56.2]} 10. Bxf6 {[%clk 0:02:58.2]} 10... gxf6 {[%clk 0:02:53]} 11. Bc4
{[%clk 0:02:55.9]} 11... Qb6 {[%clk 0:02:31.5]} 12. Bb3 {[%clk 0:02:38.7]} 12...
a5 {[%clk 0:02:23.7]} 13. f4 {[%clk 0:02:18.1]} 13... O-O {[%clk 0:02:07.4]} 14.
g4 {[%clk 0:01:43]} 14... Kh8 {[%clk 0:02:06.2]} 15. h4 {[%clk 0:01:42.3]} 15...
d5 {[%clk 0:02:06.6]} 16. g5 {[%clk 0:01:30.2]} 16... Ba6 {[%clk 0:01:46.7]} 17.
f5 {[%clk 0:01:13.3]} 17... Rad8 {[%clk 0:01:36.5]} 18. e5 {[%clk 0:01:07.6]}
18... fxe5 {[%clk 0:01:36.1]} 19. f6 {[%clk 0:01:07.9]} 19... Bb4 {[%clk
0:01:29.5]} 20. h5 {[%clk 0:01:03.9]} 20... Qd4 {[%clk 0:01:01.2]} 21. Qg2
{[%clk 0:00:58.6]} 21... Qf4+ {[%clk 0:00:56.5]} 22. Kb1 {[%clk 0:00:58.8]}
22... Bxc3 {[%clk 0:00:50.5]} 23. bxc3 {[%clk 0:00:58.6]} 23... a4 {[%clk
0:00:41.5]} 24. g6 {[%clk 0:00:56.4]} 24... Qxf6 {[%clk 0:00:41]} 25. Bxa4
{[%clk 0:00:34.4]} 25... e4 {[%clk 0:00:40.4]} 26. Qd2 {[%clk 0:00:19.1]} 26...
c5 {[%clk 0:00:36.6]} 27. Rdg1 {[%clk 0:00:10.6]} 27... Rg8 {[%clk 0:00:30.2]}
28. Qh6 {[%clk 0:00:10.6]} 28... Rg7 {[%clk 0:00:28.8]} 29. Qe3 {[%clk
0:00:05.4]} 29... Rb8+ {[%clk 0:00:26.3]} 30. Kc1 {[%clk 0:00:04.1]} 30... d4
{[%clk 0:00:16.9]} 31. cxd4 {[%clk 0:00:05]} 31... cxd4 {[%clk 0:00:17.3]} 32.
Qxe4 {[%clk 0:00:03.5]} 32... d3 {[%clk 0:00:17.2]} 33. Bb3 {[%clk 0:00:03.1]}
33... dxc2 {[%clk 0:00:16.2]} 34. gxf7 {[%clk 0:00:01.9]} 34... Qa1+ {[%clk
0:00:12.1]} 35. Kxc2 {[%clk 0:00:01.8]} 35... Rc8+ {[%clk 0:00:11.8]} 36. Kd2
{[%clk 0:00:02.3]} 36... Qc3+ {[%clk 0:00:11.2]} 37. Kd1 {[%clk 0:00:01.2]}
37... Rd8+ {[%clk 0:00:11.2]} 0-1

[Event "*** Titled Tuesday Blitz"]
[Site "Chess.com"]
[Date "2020.05.12"]
[Round "3"]
[White "Playgood28"]
[Black "Dixit_Nikhil"]
[Result "1/2-1/2"]
[WhiteElo "2244"]
[BlackElo "2497"]
[TimeControl "180+1"]
[EndTime "10:28:24 PDT"]
[Termination "Game drawn by repetition"]

1. d4 {[%clk 0:03:00.9]} 1... Nf6 {[%clk 0:02:59.1]} 2. c4 {[%clk 0:03:00.5]}
2... g6 {[%clk 0:02:59.2]} 3. Nc3 {[%clk 0:03:00.2]} 3... Bg7 {[%clk 0:03:00.1]}
4. Nf3 {[%clk 0:03:00]} 4... O-O {[%clk 0:02:59.9]} 5. Bf4 {[%clk 0:02:57.4]}
5... d6 {[%clk 0:02:59.9]} 6. h3 {[%clk 0:02:55.5]} 6... c5 {[%clk 0:02:59.3]}
7. e3 {[%clk 0:02:54.1]} 7... Nc6 {[%clk 0:02:53.8]} 8. Be2 {[%clk 0:02:50.2]}
8... cxd4 {[%clk 0:02:48.3]} 9. exd4 {[%clk 0:02:49.7]} 9... d5 {[%clk
0:02:48.8]} 10. c5 {[%clk 0:02:48.5]} 10... Ne4 {[%clk 0:02:45.4]} 11. O-O
{[%clk 0:02:46.4]} 11... Be6 {[%clk 0:02:36.2]} 12. Rc1 {[%clk 0:02:42.8]} 12...
Rc8 {[%clk 0:02:31.3]} 13. a3 {[%clk 0:02:40.9]} 13... b6 {[%clk 0:02:29.3]} 14.
b4 {[%clk 0:02:39.6]} 14... bxc5 {[%clk 0:02:18.4]} 15. bxc5 {[%clk 0:02:36.8]}
15... Qa5 {[%clk 0:02:18]} 16. Qd3 {[%clk 0:01:52.3]} 16... Bf5 {[%clk
0:02:06.7]} 17. g4 {[%clk 0:01:50.6]} 17... Nxc3 {[%clk 0:02:00.5]} 18. gxf5
{[%clk 0:01:49.8]} 18... Nxe2+ {[%clk 0:01:55.5]} 19. Qxe2 {[%clk 0:01:49.4]}
19... gxf5 {[%clk 0:01:54.7]} 20. Qd3 {[%clk 0:01:44.2]} 20... e6 {[%clk
0:01:51.5]} 21. Bd6 {[%clk 0:01:35.8]} 21... Rfe8 {[%clk 0:01:38.4]} 22. Rb1
{[%clk 0:01:32.4]} 22... Kh8 {[%clk 0:01:18.7]} 23. Rb7 {[%clk 0:01:26.2]} 23...
Nd8 {[%clk 0:01:10.2]} 24. Re7 {[%clk 0:01:14.7]} 24... Rxe7 {[%clk 0:01:09.4]}
25. Bxe7 {[%clk 0:01:14.3]} 25... Nc6 {[%clk 0:01:10.3]} 26. Bd6 {[%clk
0:01:12.7]} 26... Qd8 {[%clk 0:01:08.3]} 27. Kh1 {[%clk 0:01:08.6]} 27... Qf6
{[%clk 0:01:08.2]} 28. Rd1 {[%clk 0:01:00.3]} 28... Rg8 {[%clk 0:01:05.8]} 29.
Qa6 {[%clk 0:00:54.5]} 29... Qh6 {[%clk 0:00:52.5]} 30. Qxc6 {[%clk 0:00:41.3]}
30... Qxh3+ {[%clk 0:00:52.1]} 31. Nh2 {[%clk 0:00:38.7]} 31... Bxd4 {[%clk
0:00:50.7]} 32. Rg1 {[%clk 0:00:25.3]} 32... Rxg1+ {[%clk 0:00:48.7]} 33. Kxg1
{[%clk 0:00:24.6]} 33... Kg7 {[%clk 0:00:27.3]} 34. Qc7 {[%clk 0:00:22]} 34...
Qc3 {[%clk 0:00:21.5]} 35. Bg3 {[%clk 0:00:15.7]} 35... Qe1+ {[%clk 0:00:20.3]}
36. Kg2 {[%clk 0:00:15.5]} 36... Qe4+ {[%clk 0:00:20.8]} 37. Kg1 {[%clk
0:00:15.1]} 37... Qe1+ {[%clk 0:00:20.8]} 38. Kg2 {[%clk 0:00:14.8]} 38... Qc3
{[%clk 0:00:21.4]} 39. Qf4 {[%clk 0:00:12.8]} 39... Qxc5 {[%clk 0:00:20.1]} 40.
Qg5+ {[%clk 0:00:12.5]} 40... Kf8 {[%clk 0:00:20.5]} 41. Qd8+ {[%clk 0:00:12.5]}
41... Kg7 {[%clk 0:00:20.8]} 42. Qg5+ {[%clk 0:00:12.9]} 42... Kh8 {[%clk
0:00:21.2]} 43. Qd8+ {[%clk 0:00:12.5]} 43... Kg7 {[%clk 0:00:21.7]} 44. Qg5+
{[%clk 0:00:12.8]} 1/2-1/2